bitfinex/quotes_ETHUSD_20240925
["timestamp","ask_amount","ask_price","bid_price","bid_amount"]
[1727271213634,0.0383371,2622.6,2622.5,4.5800724]
[1727271215101,0.0383371,2622.6,2622.5,5.4036724]
[1727271216218,0.0383371,2622.6,2622.5,8.9536724]
[1727271221482,0.0383371,2623.4,2623.3,3.81199]
[1727271222419,0.8419371,2623.4,2623.2,3.81213]
[1727271222590,0.4339795,2623.3,2623.1,3.81215]
[1727271223028,0.8419371,2623.4,2623.1,3.81215]
[1727271223195,0.8419371,2623.4,2623.3,3.81199]
[1727271224034,0.0383371,2623.4,2623.3,3.81199]
[1727271229891,0.8361371,2623.4,2623.3,3.81199]
[1727271230798,0.8361371,2623.4,2623.0,3.81241]
[1727271230799,0.8361371,2623.4,2623.1,3.8122]
[1727271231301,0.8361371,2623.4,2623.2,3.81204]
[1727271231519,0.8361371,2623.4,2623.3,3.81199]
[1727271231717,0.8361371,2623.4,2623.1,7.62436]
[1727271231927,0.8361371,2623.4,2623.2,3.81203]
[1727271232124,0.8361371,2623.4,2623.3,3.81199]
[1727271232834,0.8361371,2623.4,2623.1,3.81216]
[1727271232991,0.8361371,2623.4,2623.1,7.62436]
[1727271233204,0.8361371,2623.4,2623.2,3.81209]
[1727271233443,0.8361371,2623.4,2623.3,3.81199]
[1727271233607,0.0383371,2623.4,2623.3,3.81199]
[1727271236207,0.0383371,2623.4,2623.3,4.58579]
[1727271236513,0.0383371,2623.4,2623.3,5.13579]
[1727271237103,0.0383371,2623.4,2623.3,8.21200819]
[1727271237330,0.0383371,2623.4,2623.3,9.12676916]
[1727271241150,0.0383371,2624.2,2623.3,9.12676916]
[1727271241151,0.0383371,2624.2,2623.3,9.99480756]
[1727271241361,0.0383371,2625.0,2624.9,3.80966]
[1727271241627,0.7718,2625.1,2624.9,3.80966]
[1727271241628,0.7718,2625.1,2624.9,4.190626]
[1727271241835,0.0163214,2625.0,2624.9,3.80966]
[1727271242721,0.0163214,2625.0,2624.9,8.19126]
[1727271244063,0.0409156,2625.5,2625.4,8.18574]
[1727271245969,0.0409156,2625.5,2625.4,7.63574]
[1727271246335,0.0409156,2625.5,2625.4,3.80894]
[1727271248205,0.0409156,2625.5,2625.4,3.88510659]
[1727271248472,0.0409156,2625.5,2625.4,8.13954]
[1727271251234,0.0409156,2625.5,2625.4,3.80894]
[1727271251902,0.0409156,2625.5,2625.4,4.570742]
[1727271253487,0.0409156,2625.5,2625.4,3.80894]
[1727271254339,0.0409156,2625.5,2625.3,3.80908]
[1727271254639,0.7672,2625.4,2625.3,3.80908]
[1727271255173,0.7672,2625.4,2625.0,3.80941]
[1727271255594,0.7846,2625.2,2624.6,3.81001]
[1727271255749,0.7846,2625.2,2624.8,3.80981]
[1727271255948,0.7846,2625.2,2624.9,3.80964]
[1727271256542,0.7846,2625.2,2625.0,3.80942]
[1727271257065,0.7846,2625.2,2624.9,3.80959]
[1727271257287,0.7846,2625.2,2624.7,7.61969]
[1727271257437,1.243961,2625.2,2624.7,7.61971]
[1727271257635,1.243961,2625.2,2624.8,3.80981]
[1727271257872,1.243961,2625.2,2624.8,3.80978]
[1727271258258,1.243961,2625.2,2624.8,3.80981]
[1727271258487,1.243961,2625.2,2624.7,3.80984]
[1727271258983,0.7846,2625.2,2624.9,3.80966]
[1727271260080,0.7846,2625.2,2624.3,3.0]
[1727271260081,3.8094,2625.1,2624.5,7.62027]
[1727271260252,3.8094,2625.1,2624.6,3.81009]
[1727271260989,0.8263,2624.8,2624.4,3.81032]
[1727271261189,4.63614,2624.8,2624.3,3.81045]
[1727271261342,4.63614,2624.8,2624.0,3.8109]
[1727271261343,5.11125899,2624.8,2624.0,3.8109]
[1727271261545,5.11125899,2624.8,2624.0,3.81089]
[1727271261546,0.7646,2624.5,2624.0,3.81089]
[1727271261747,7.30863786,2624.2,2623.6,7.62291]
[1727271261988,0.7646,2624.4,2623.3,0.8098]
[1727271261989,0.7646,2624.1,2623.7,3.81139]
[1727271262278,0.7646,2624.1,2623.3,0.8098]
[1727271262279,0.7646,2624.1,2623.6,3.81153]
[1727271262485,3.81101,2624.0,2623.5,3.81161]
[1727271262694,0.7646,2624.1,2623.3,3.81191]
[1727271262695,0.7646,2623.9,2623.3,3.81191]
[1727271262846,0.7646,2623.9,2623.5,3.81156]
[1727271263346,0.7646,2623.9,2623.3,8.004961]
[1727271263543,3.81135,2623.8,2623.2,3.81208]
[1727271263747,0.7646,2623.9,2622.8,0.787]
[1727271263748,0.8093,2623.6,2622.8,0.787]
[1727271263973,0.8093,2623.6,2622.6,3.81298]
[1727271263974,0.8093,2623.6,2623.1,3.81219]
[1727271264146,1.271372,2623.6,2623.1,3.81219]
[1727271264350,1.271372,2623.6,2622.9,3.81249]
[1727271264351,3.81177,2623.5,2623.0,3.81242]
[1727271264566,1.271372,2623.6,2623.1,3.81227]
[1727271265243,0.8093,2623.6,2623.1,3.81227]
[1727271265490,0.8093,2623.6,2623.3,3.81194]
[1727271266683,0.8093,2623.6,2623.4,3.81184]
[1727271267022,0.8093,2623.6,2623.5,3.8117]
[1727271268853,0.7894,2623.8,2623.5,3.8117]
[1727271269691,0.7894,2623.8,2623.3,3.81188]
[1727271269906,3.81171,2623.5,2623.0,3.81235]
[1727271270050,0.8294,2623.4,2623.0,3.81234]
[1727271270452,0.8294,2623.4,2623.0,3.81233]
[1727271270867,0.8294,2623.4,2623.0,7.62468]
[1727271271062,0.8294,2623.4,2623.0,3.81233]
[1727271271608,3.81222,2623.2,2622.4,3.81323]
[1727271271776,0.8294,2623.1,2622.7,3.81285]
[1727271271974,4.64171,2623.1,2622.5,3.81305]
[1727271272181,4.69423963,2623.1,2622.5,7.62612]
[1727271272386,4.69423963,2623.1,2622.5,3.81305]
[1727271272606,0.8294,2623.1,2622.6,3.81293]
[1727271273504,0.88192963,2623.1,2622.5,3.81305]
[1727271273683,3.81265,2622.9,2622.3,3.81335]
[1727271273877,0.05252963,2622.9,2622.5,3.81315]
[1727271274093,3.81257,2622.9,2622.5,3.81315]
[1727271274666,4.24995786,2623.0,2622.3,3.81331]
[1727271274872,5.05618965,2623.0,2622.5,3.81311]
[1727271275268,5.10871928,2623.0,2622.5,3.81311]
[1727271275473,3.81257,2622.9,2622.5,3.81311]
[1727271275669,3.86509963,2622.9,2622.5,3.81311]
[1727271275920,3.81257,2622.9,2622.5,3.81311]
[1727271276422,0.7521,2623.0,2622.5,3.81307]
[1727271276736,0.7521,2623.0,2622.5,3.81315]
[1727271277023,0.80462963,2623.0,2622.3,3.81331]
[1727271277170,4.56453,2623.0,2622.5,3.81307]
[1727271277368,4.56453,2623.0,2622.5,7.62614]
[1727271277605,4.56453,2623.0,2622.5,3.81307]
[1727271278190,3.7704,2623.4,2623.0,7.62458]
[1727271278403,0.7704,2623.4,2623.0,3.81229]
[1727271279188,0.7704,2623.4,2623.1,3.81226]
[1727271279393,0.7704,2623.4,2623.1,3.81227]
[1727271280123,0.7704,2623.4,2623.0,3.81235]
[1727271280430,0.7704,2623.4,2622.9,3.81253]
[1727271280431,0.7704,2623.4,2623.1,3.81225]
[1727271280591,0.7704,2623.4,2622.7,0.5022587]
[1727271280592,0.7704,2623.4,2623.2,3.81213]
[1727271280806,0.7704,2623.4,2623.3,4.193203]
[1727271281118,3.49785786,2624.1,2623.5,3.81169]
[1727271281119,0.7606,2624.0,2623.5,3.81169]
[1727271281322,0.7606,2624.0,2623.5,7.6233]
[1727271281505,0.7606,2624.0,2623.5,3.81161]
[1727271282103,4.57165,2624.0,2623.5,3.81161]
[1727271282619,5.409909,2624.0,2623.5,3.81161]
[1727271284191,4.57165,2624.0,2623.5,3.81161]
[1727271284883,0.7606,2624.0,2623.8,3.81125]
[1727271285087,0.7606,2624.0,2623.6,7.62289]
[1727271285281,4.57157,2624.0,2623.4,3.81176]
[1727271285486,3.81113,2623.9,2623.4,3.81176]
[1727271285998,3.81113,2623.9,2623.4,7.62352]
[1727271286206,1.217757,2624.0,2623.5,3.81162]
[1727271286405,3.81114,2623.9,2623.4,3.81176]
[1727271286612,8.12953786,2623.8,2623.2,3.81203]
[1727271286817,3.81158,2623.6,2623.2,3.81203]
[1727271287589,11.94090786,2623.8,2623.2,3.81203]
[1727271287787,8.12953786,2623.8,2623.2,3.81203]
[1727271288024,3.81144,2623.7,2623.2,3.81203]
[1727271288225,9.11158419,2623.8,2623.0,3.81232]
[1727271288226,3.81157,2623.6,2623.1,3.81222]
[1727271288528,9.11158419,2623.8,2623.2,3.81204]
[1727271289197,0.91115842,2623.7,2623.1,3.81222]
[1727271289466,3.81153,2623.7,2623.1,7.62439]
[1727271289619,3.81153,2623.7,2623.2,3.81204]
[1727271290330,0.8232,2623.4,2622.9,3.81246]
[1727271290636,0.8021,2623.7,2623.3,3.81199]
[1727271290985,0.8021,2623.7,2623.4,3.81184]
[1727271291699,0.8021,2623.7,2623.5,3.81161]
[1727271292425,0.8021,2623.7,2623.6,3.81155]
[1727271292803,0.7758,2623.9,2623.6,3.81155]
[1727271294029,0.7758,2623.9,2623.4,3.81174]
[1727271294194,4.587,2623.9,2623.4,3.81174]
[1727271294828,4.587,2623.9,2623.4,3.81173]
[1727271295331,3.81144,2623.7,2623.2,3.81206]
[1727271295537,3.49785786,2623.5,2623.1,3.81226]
[1727271295692,4.57586,2623.6,2623.2,3.81212]
[1727271296088,4.57586,2623.6,2623.0,3.81231]
[1727271296324,7.30956786,2623.5,2623.0,3.81231]
[1727271296540,3.49785786,2623.2,2622.8,7.4]
[1727271296696,3.49785786,2623.2,2622.1,0.0409156]
[1727271296697,3.81229,2623.1,2622.6,3.81293]
[1727271296894,0.7585,2623.0,2622.5,3.81314]
[1727271297097,5.30202479,2623.0,2622.5,3.81314]
[1727271297400,5.30197479,2623.0,2622.4,3.81317]
[1727271297792,5.30197479,2623.0,2622.7,3.81282]
[1727271297793,0.7585,2623.0,2622.7,3.81282]
[1727271298436,0.7585,2623.0,2622.6,3.81289]
[1727271300218,4.57093,2623.0,2622.5,3.81314]
[1727271300434,4.57093,2623.0,2622.2,8.2079]
[1727271300435,3.81281,2622.8,2622.3,3.81337]
[1727271300732,0.7585,2623.0,2622.6,3.8129]
[1727271300900,0.7585,2623.0,2622.9,3.81257]
[1727271301106,0.7966,2623.2,2623.0,3.81228]
[1727271301321,7.46,2623.3,2623.1,3.81222]
[1727271301635,7.46,2623.3,2623.0,3.81228]
[1727271302303,7.46,2623.3,2623.2,3.81213]
[1727271302726,7.46,2623.3,2623.1,3.81227]
[1727271303917,3.81229,2623.1,2622.7,0.0098074]
[1727271304101,0.7505,2623.0,2622.7,0.0098074]
[1727271304535,4.56321,2622.8,2622.7,0.0098074]
[1727271305811,7.65553963,2622.8,2622.7,0.0098074]
[1727271306142,7.65553963,2622.8,2621.9,0.0376478]
[1727271306143,7.60418,2622.0,2621.9,0.0376478]
[1727271306341,7.60418,2622.0,2621.2,0.0376478]
[1727271306342,0.7734,2621.4,2621.2,0.0376478]
[1727271306499,7.36528749,2621.3,2621.2,0.0376478]
[1727271306699,8.56062924,2621.3,2621.2,0.0376478]
[1727271306902,12.28149961,2621.3,2621.2,0.0376478]
[1727271307332,4.96874175,2621.3,2621.2,0.0376478]
[1727271307636,0.7734,2621.3,2621.2,0.0376478]
[1727271308121,0.788,2621.7,2621.2,0.0376478]
[1727271308345,4.60234,2621.7,2621.2,0.0376478]
[1727271308514,5.79376879,2621.7,2621.2,0.0376478]
[1727271308712,1.97942879,2621.7,2621.2,3.8525578]
[1727271309039,1.97942879,2621.7,2621.2,0.0376478]
[1727271309564,3.49785786,2621.6,2621.2,0.0376478]
[1727271309727,1.97942879,2621.7,2621.2,0.0376478]
[1727271309728,3.49785786,2621.3,2621.2,0.0376478]
[1727271309931,11.06895786,2621.3,2621.2,0.0376478]
[1727271311756,7.25405786,2621.3,2621.2,0.0376478]
[1727271312054,1.86306879,2621.3,2621.2,0.0376478]
[1727271312438,4.60229,2621.7,2621.2,0.0376478]
[1727271312753,3.49785786,2621.3,2621.2,0.0376478]
[1727271312929,7.31275786,2621.3,2621.2,0.0376478]
[1727271313135,3.49785786,2621.3,2621.2,0.0376478]
[1727271313638,3.81464,2621.5,2621.2,0.0376478]
[1727271313855,3.49785786,2621.6,2621.2,0.0376478]
[1727271313856,0.381464,2621.4,2621.2,0.0376478]
[1727271314164,4.60223,2621.7,2621.2,3.8526378]
[1727271314476,0.7879,2621.7,2621.3,3.81488]
[1727271314662,0.7912,2622.0,2621.5,3.8146]
[1727271314816,4.986511,2622.0,2621.3,3.81483]
[1727271315151,4.986511,2622.0,2621.4,3.81473]
[1727271315351,4.986501,2622.0,2621.4,3.81473]
[1727271315553,8.19192696,2621.9,2621.2,3.8526278]
[1727271315770,7.92843328,2621.9,2621.2,3.8526278]
[1727271316243,11.74257328,2621.9,2621.3,3.81489]
[1727271316563,7.31189786,2621.9,2621.3,3.81489]
[1727271316767,11.12602786,2621.9,2621.3,3.81489]
[1727271316926,1.22986089,2621.8,2621.3,3.81489]
[1727271317568,3.81432,2621.7,2621.2,3.8525978]
[1727271317864,3.49785786,2621.6,2621.3,3.81488]
[1727271318027,1.22986089,2621.8,2621.2,3.8525978]
[1727271318366,7.31189786,2621.9,2621.2,3.8525978]
[1727271318920,7.31189786,2621.9,2621.3,3.81489]
[1727271319122,3.81419,2621.8,2621.2,7.6675478]
[1727271319517,3.81435,2621.7,2621.2,3.8525978]
[1727271319766,4.92697479,2621.7,2621.2,3.8525978]
[1727271320267,11.12611786,2621.9,2621.3,3.81489]
[1727271320469,7.31195786,2621.9,2621.3,3.81489]
[1727271320959,7.31195786,2621.9,2621.4,3.81473]
[1727271321261,3.8142,2621.8,2621.2,7.6675178]
[1727271321471,3.8142,2621.8,2621.3,3.81488]
[1727271321843,3.86686963,2621.7,2621.2,3.8525578]
[1727271322040,3.81462,2621.5,2621.2,0.0376478]
[1727271322365,3.86717963,2621.5,2621.2,0.0376478]
[1727271322580,4.63755,2621.4,2621.2,0.0376478]
[1727271322738,0.05252963,2621.3,2621.2,0.0376478]
[1727271323066,0.87532963,2621.4,2621.2,0.0376478]
[1727271323924,0.05252963,2621.4,2621.2,0.0376478]
[1727271324325,0.82770207,2621.4,2621.2,0.0376478]
[1727271325457,7.69902482,2621.6,2621.2,0.0376478]
[1727271326322,0.05252963,2621.5,2621.2,0.0376478]
[1727271326728,7.69902482,2621.6,2621.2,0.0376478]
[1727271326927,3.8149,2621.3,2621.2,0.0376478]
[1727271327157,11.47920082,2621.3,2621.2,0.0376478]
[1727271327389,12.09573624,2621.3,2621.2,0.0376478]
[1727271328168,13.04407078,2621.3,2621.2,0.0376478]
[1727271328854,12.42753536,2621.3,2621.2,0.0376478]
[1727271329262,11.87753536,2621.3,2621.2,0.0376478]
[1727271330706,11.47920082,2621.3,2621.2,0.0376478]
[1727271331969,7.98134296,2621.3,2621.2,0.0376478]
[1727271332170,8.12935831,2621.3,2621.2,0.0376478]
[1727271333572,1.31445831,2621.3,2621.2,0.0376478]
[1727271333871,4.74261535,2621.3,2621.2,0.0376478]
[1727271335208,11.29300284,2621.3,2621.2,0.0376478]
[1727271335410,11.85700863,2621.3,2621.2,0.0376478]
[1727271335596,11.24047321,2621.3,2621.2,0.0376478]
[1727271335774,7.74261535,2621.3,2621.2,0.0376478]
[1727271336111,0.14801535,2621.3,2621.2,0.0376478]
[1727271336912,3.81474,2621.5,2621.2,0.0376478]
[1727271337715,0.14384601,2621.4,2621.2,0.0376478]
[1727271338014,0.14384601,2621.4,2621.3,3.8149]
[1727271338321,3.81449,2621.6,2621.2,0.0376478]
[1727271338618,3.95858361,2621.4,2621.2,0.0376478]
[1727271338783,3.81461,2621.5,2621.2,0.0376478]
[1727271339105,3.81449,2621.6,2621.2,0.0376478]
[1727271339314,0.14394865,2621.5,2621.2,0.0376478]
[1727271339886,0.7567,2622.2,2621.8,3.81407]
[1727271340088,0.14434649,2622.1,2621.8,4.57947]
[1727271340313,4.194794,2622.3,2621.8,4.57947]
[1727271340483,0.13956321,2622.0,2621.8,4.57947]
[1727271340683,4.56993,2622.5,2621.8,4.57947]
[1727271340684,0.7567,2622.5,2621.8,4.57947]
[1727271341016,3.95303028,2622.4,2621.9,3.81402]
[1727271341221,0.13966028,2622.4,2621.9,3.81402]
[1727271341512,3.95308028,2622.4,2621.8,4.57947]
[1727271341872,3.95308028,2622.4,2621.8,8.39355]
[1727271342080,3.95308028,2622.4,2621.9,3.81401]
[1727271342304,3.95296028,2622.4,2621.8,8.39354]
[1727271342521,0.13966028,2622.4,2621.9,3.814]
[1727271343092,3.95304028,2622.4,2621.8,0.7654]
[1727271343280,3.95304028,2622.4,2621.8,0.84167528]
[1727271343605,3.95304028,2622.4,2621.8,4.57954]
[1727271343817,3.95304028,2622.4,2621.8,5.41893]
[1727271344120,3.95304028,2622.4,2621.8,9.23303]
[1727271344288,3.81356,2622.3,2621.6,3.81437]
[1727271344491,3.81356,2622.3,2621.5,0.7538]
[1727271344492,3.81383,2622.1,2621.5,0.7538]
[1727271344809,0.14025062,2622.0,2621.5,4.56838]
[1727271345379,3.95414062,2622.0,2621.5,4.56838]
[1727271345937,0.14025062,2622.0,2621.6,3.81444]
[1727271346151,0.14025062,2622.0,2621.9,3.81402]
[1727271346534,3.81289,2622.7,2622.2,3.81351]
[1727271346853,0.7904,2623.0,2621.8,0.8176]
[1727271347051,3.49785786,2622.6,2621.8,0.8176]
[1727271347335,0.05252963,2622.5,2621.8,0.8176]
[1727271347545,3.81383,2622.1,2621.6,11.97569]
[1727271347715,3.81383,2622.1,2621.6,4.57569]
[1727271347910,0.12779512,2622.0,2621.6,4.57566]
[1727271348338,0.12779512,2622.0,2621.6,8.39003]
[1727271348540,0.12779512,2622.0,2621.6,4.57566]
[1727271348739,0.57448726,2622.0,2621.4,4.57599]
[1727271348940,3.94175512,2622.0,2621.4,4.57595]
[1727271349145,7.75572512,2622.0,2621.4,4.57595]
[1727271349444,7.75572512,2622.0,2621.2,3.8525978]
[1727271349445,0.12779512,2622.0,2621.9,4.57532]
[1727271349672,0.12779512,2622.0,2621.9,5.414267]
[1727271349875,3.81304,2622.6,2622.1,3.81364]
[1727271350081,0.8284,2622.7,2622.2,0.07627156]
[1727271350386,3.81279,2622.8,2622.2,3.88984156]
[1727271350387,7.62562,2622.8,2622.2,3.88984156]
[1727271350539,3.81289,2622.7,2622.2,3.81357]
[1727271350738,4.69462593,2622.8,2622.2,3.81357]
[1727271351274,1.98658932,2622.9,2622.4,0.7732]
[1727271351476,0.7935,2622.9,2622.4,0.7732]
[1727271352183,4.6062,2622.9,2622.2,0.7782]
[1727271352342,4.60617,2622.9,2622.3,3.81344]
[1727271352540,4.39271893,2622.8,2622.2,4.59169]
[1727271352880,0.7935,2622.9,2622.4,3.81328]
[1727271353181,6.81237,2623.1,2622.5,3.88931153]
[1727271353335,3.0,2623.1,2622.6,3.81291]
[1727271353537,3.0,2623.1,2622.7,3.81278]
[1727271353776,0.7645,2623.2,2622.7,4.59148]
[1727271354081,3.81229,2623.1,2622.7,0.7787]
[1727271354380,3.81229,2623.1,2622.5,3.81312]
[1727271354675,9.50619864,2623.2,2622.6,3.813]
[1727271354973,9.50619864,2623.2,2622.5,3.81312]
[1727271354974,4.8010158,2623.1,2622.5,3.81306]
[1727271355140,4.8010158,2623.1,2622.6,3.81299]
[1727271355337,4.8010158,2623.1,2622.5,3.81306]
[1727271355568,0.55655158,2623.0,2622.4,0.833]
[1727271355777,3.81261,2622.9,2622.4,4.64627]
[1727271356073,3.81261,2622.9,2622.4,0.833]
[1727271356074,3.81272,2622.8,2622.4,0.833]
[1727271356246,3.81272,2622.8,2622.2,3.8135]
[1727271356247,3.8129,2622.7,2622.2,3.8135]
[1727271356673,4.24963616,2622.8,2622.2,3.8135]
[1727271357235,4.24963616,2622.8,2622.2,7.62698]
[1727271357581,4.24963616,2622.8,2622.2,3.81348]
[1727271357976,4.24963616,2622.8,2622.2,7.62697]
[1727271358141,4.24963616,2622.8,2622.2,3.81348]
[1727271358336,0.43691616,2622.8,2622.4,3.81327]
[1727271358541,0.43691616,2622.8,2622.4,3.81322]
[1727271358742,4.36899158,2623.0,2622.4,3.81322]
[1727271359252,0.9887058,2623.1,2622.7,3.81285]
[1727271359457,0.7645,2623.2,2622.7,3.81277]
[1727271359757,3.81279,2622.8,2622.1,3.81363]
[1727271359939,3.49785786,2622.9,2622.2,3.81351]
[1727271360251,3.81308,2622.6,2622.1,3.81363]
[1727271360454,3.81286,2622.7,2622.2,3.81354]
[1727271360652,3.81286,2622.7,2622.1,3.81363]
[1727271360653,0.80969179,2622.7,2622.1,3.81363]
[1727271360866,0.7862,2622.8,2622.4,3.8132]
[1727271361052,7.61981679,2623.1,2622.4,3.8132]
[1727271361053,8.45181679,2623.1,2622.4,3.8132]
[1727271361285,3.8125,2623.0,2622.4,3.8132]
[1727271361445,5.03893168,2623.0,2622.4,3.8132]
[1727271361645,5.03893168,2623.0,2622.4,7.62642]
[1727271362184,3.81264,2622.9,2622.2,3.81352]
[1727271362388,3.81264,2622.9,2622.3,3.81341]
[1727271362681,0.50390717,2622.8,2622.2,3.8135]
[1727271362857,0.50390717,2622.8,2622.3,3.81335]
[1727271363056,4.31663717,2622.8,2622.3,3.81335]
[1727271363492,1.22643168,2623.0,2622.2,3.81354]
[1727271363785,0.832,2623.1,2622.7,3.81285]
[1727271364359,4.64436,2623.1,2622.6,4.63088]
[1727271364561,0.832,2623.1,2622.7,3.81285]
[1727271365173,4.64436,2623.1,2622.6,4.6309]
[1727271365375,5.490001,2623.1,2622.6,4.6309]
[1727271366117,0.832,2623.1,2622.7,3.81281]
[1727271366615,4.59345,2623.3,2622.7,3.81281]
[1727271366920,3.81222,2623.2,2622.6,8.4438]
[1727271367203,3.81222,2623.2,2622.2,7.4]
[1727271367204,3.8123,2623.1,2622.4,0.8218]
[1727271367417,3.8123,2623.1,2622.6,3.81296]
[1727271367589,4.271475,2623.2,2622.7,3.81285]
[1727271368091,0.459345,2623.2,2622.8,3.81263]
[1727271368283,0.459345,2623.2,2622.9,3.81251]
[1727271368487,0.7814,2623.3,2622.9,3.81251]
[1727271368784,3.0,2623.5,2623.1,4.57855]
[1727271369019,0.8327,2623.6,2623.2,3.81212]
[1727271369234,4.64428,2623.6,2623.1,4.57855]
[1727271369376,0.8327,2623.6,2623.1,8.39071]
[1727271369582,3.81149,2623.7,2623.2,3.81208]
[1727271369779,0.381149,2623.6,2623.1,4.57867]
[1727271370100,4.192729,2623.6,2623.1,4.57867]
[1727271370303,3.86425963,2623.5,2622.8,0.7789]
[1727271370476,3.86425963,2623.5,2622.7,3.81274]
[1727271370477,3.81206,2623.3,2622.7,3.81274]
[1727271370683,3.81206,2623.3,2622.9,3.81255]
[1727271371303,5.02417086,2623.4,2622.9,3.81247]
[1727271371507,5.02417086,2623.4,2623.0,3.8124]
[1727271371907,5.02417086,2623.4,2622.9,3.81247]
[1727271372145,5.02417086,2623.4,2622.8,3.81271]
[1727271372146,4.31448709,2623.3,2622.8,3.81271]
[1727271372425,3.81223,2623.2,2622.5,3.81305]
[1727271372723,0.51023471,2623.2,2622.7,3.81285]
[1727271372878,4.32244471,2623.2,2622.7,7.6257]
[1727271373085,4.32244471,2623.2,2622.7,3.81285]
[1727271373583,3.81258,2622.9,2622.4,3.81329]
[1727271373801,3.8129,2622.7,2622.3,3.81337]
[1727271374097,4.54397579,2622.7,2622.3,3.81337]
[1727271374279,3.8129,2622.7,2622.3,3.81337]
[1727271374492,3.81271,2622.9,2622.3,3.81337]
[1727271374817,3.8128,2622.8,2622.3,3.81337]
[1727271375115,3.81287,2622.7,2622.3,3.81337]
[1727271375316,4.56761,2622.6,2622.1,3.81371]
[1727271375524,0.7546,2622.6,2622.2,3.8135]
[1727271375684,3.81287,2622.7,2622.2,3.8135]
[1727271375892,4.97594195,2622.7,2622.2,3.8135]
[1727271377488,1.16307195,2622.7,2622.3,3.81343]
[1727271377927,0.8316,2622.8,2622.3,3.81343]
[1727271378222,3.81288,2622.7,2622.3,3.81343]
[1727271378628,3.81288,2622.7,2622.2,3.81358]
[1727271379332,4.64433,2622.8,2622.3,3.81335]
[1727271379684,7.46,2623.2,2622.4,0.8047]
[1727271379787,7.46,2623.2,2622.6,3.81297]
[1727271379788,11.27215,2623.2,2622.6,3.81297]
[1727271379994,3.49785786,2622.9,2622.6,7.62586]
[1727271380289,0.7997,2622.8,2622.3,3.81333]
[1727271380491,3.81301,2622.6,2622.1,3.81366]
[1727271380893,3.81301,2622.6,2621.9,3.81393]
[1727271380894,4.32785786,2622.3,2622.0,3.81375]
[1727271381129,0.83,2622.3,2621.7,3.81418]
[1727271381333,0.83,2622.3,2621.4,8.196]
[1727271381504,0.83,2622.3,2621.8,3.81403]
[1727271381701,0.8083,2622.5,2622.0,0.8313]
[1727271382132,0.8083,2622.5,2622.0,4.64516]
[1727271382341,0.8083,2622.5,2622.0,4.64508]
[1727271383101,3.81308,2622.6,2622.0,4.64508]
[1727271383306,1.25004731,2622.5,2622.0,4.64508]
[1727271384735,1.19308932,2622.6,2622.2,3.81356]
[1727271384940,9.46308932,2622.7,2622.2,3.81356]
[1727271385140,1.19308932,2622.8,2622.5,3.81306]
[1727271385340,1.19308932,2622.9,2622.5,3.81306]
[1727271386433,2.54356633,2623.0,2622.7,3.81284]
[1727271386865,1.19308932,2623.0,2622.7,3.81284]
[1727271387030,1.19308932,2623.0,2622.7,3.81277]
[1727271387234,1.19308932,2623.1,2622.7,7.62554]
[1727271387441,1.19308932,2623.1,2622.9,3.81248]
[1727271387661,1.19308932,2623.1,2622.5,0.7813]
[1727271387662,1.19308932,2623.2,2622.7,3.81283]
[1727271387964,1.19308932,2623.2,2622.5,4.59434]
[1727271387965,1.19308932,2623.1,2622.5,4.59434]
[1727271388139,1.19308932,2623.0,2622.7,3.81281]
[1727271388675,5.76084932,2622.9,2622.3,4.5744]
[1727271388876,1.94818932,2622.9,2622.5,3.81314]
[1727271389231,1.94818932,2622.9,2622.5,7.6262]
[1727271389430,1.19308932,2623.0,2622.7,4.57382]
[1727271389698,1.19308932,2623.2,2622.7,4.57382]
[1727271389873,1.19308932,2623.1,2622.7,4.57382]
[1727271390662,1.19308932,2623.1,2622.7,8.38658]
[1727271391079,1.19308932,2623.1,2622.8,3.81271]
[1727271391242,1.19308932,2623.1,2622.7,4.57382]
[1727271391445,1.19308932,2623.0,2622.7,4.57382]
[1727271391645,1.19308932,2623.1,2622.7,4.57382]
[1727271392266,1.19308932,2623.1,2622.7,3.81272]
[1727271392466,1.19308932,2623.1,2622.5,8.4593]
[1727271392467,1.19308932,2623.0,2622.5,8.4593]
[1727271392788,1.19308932,2623.0,2622.6,3.81293]
[1727271394050,1.19308932,2623.0,2622.8,3.81263]
[1727271394579,1.19308932,2623.1,2622.8,3.81269]
[1727271395583,1.19308932,2623.1,2622.9,3.8125]
[1727271395748,1.19308932,2623.1,2623.0,4.60232]
[1727271395943,1.19308932,2623.2,2623.1,3.81228]
[1727271396146,1.99699096,2623.5,2623.2,3.81213]
[1727271396147,1.19308932,2623.4,2623.2,3.81213]
[1727271396789,1.19308932,2623.4,2623.3,3.81199]
[1727271396949,1.19308932,2623.5,2623.4,3.81184]
[1727271397149,1.19308932,2623.6,2623.4,3.81184]
[1727271397344,1.19308932,2623.6,2623.5,3.8117]
[1727271398287,1.19308932,2623.7,2623.2,3.81204]
[1727271398443,1.19308932,2623.5,2623.2,3.81204]
[1727271398847,1.19308932,2623.5,2623.0,3.8124]
[1727271398848,1.19308932,2623.4,2623.0,3.8124]
[1727271399083,9.21422706,2623.5,2623.0,3.8124]
[1727271399084,1.19308932,2623.3,2623.0,3.8124]
[1727271399589,2.33765459,2623.4,2623.0,3.8124]
[1727271399747,1.19308932,2623.3,2623.0,3.8124]
[1727271399948,2.33765459,2623.4,2623.0,3.8124]
[1727271400198,1.19308932,2623.3,2623.0,3.8124]
[1727271400397,6.14955459,2623.4,2622.9,3.81256]
[1727271400683,4.57054,2623.2,2622.8,11.2127]
[1727271400886,4.57054,2623.2,2622.9,3.81257]
[1727271400887,1.19308932,2623.2,2622.9,3.81257]
[1727271401388,1.19308932,2623.2,2623.0,3.81242]
[1727271401588,1.19308932,2623.4,2623.2,3.81213]
[1727271401754,1.19308932,2623.5,2623.3,3.81199]
[1727271402078,1.19787089,2623.5,2623.4,3.81184]
[1727271402245,1.59074706,2623.6,2623.4,3.81184]
[1727271402246,1.19787089,2623.6,2623.4,3.81184]